Portfolio,Expense Area,Cost Centre,Expense Type,Account Code,Amount,Supplier Name,SupplierId,Pay Date,Transaction No.
Resources & Corporate Governance ,Garage Internal,WVR01,Materials,0303,111.96,Arco Limited,100015,07/03/2013,10181033
Resources & Corporate Governance ,Toilet Cleaning,WBC01,Personal Protective Clothing,0340,7.11,Arco Limited,100015,07/03/2013,10181033
Resources & Corporate Governance ,Grounds Maintenance,WGM00,Personal Protective Clothing,0340,74.66,Arco Limited,100015,07/03/2013,10181033
Resources & Corporate Governance ,Highways,WHG00,Personal Protective Clothing,0340,10.67,Arco Limited,100015,07/03/2013,10181033
Resources & Corporate Governance ,Street Cleansing,WSC00,Personal Protective Clothing,0340,85.33,Arco Limited,100015,07/03/2013,10181033
Resources & Corporate Governance ,Garage Internal,WVR01,Personal Protective Clothing,0340,14.22,Arco Limited,100015,07/03/2013,10181033
Resources & Corporate Governance ,Domestic Waste Collection,WWC00,Personal Protective Clothing,0340,149.32,Arco Limited,100015,07/03/2013,10181033
Resources & Corporate Governance ,Trade Waste Collection,WWC01,Personal Protective Clothing,0340,14.20,Arco Limited,100015,07/03/2013,10181033
Housing Revenue Account ,Unplanned Maintenance and Repair,UMR00,R&M External Contractors,0100,1086.36,AWM Electrical Contractors Ltd,100051,07/03/2013,10180975
Housing Revenue Account ,Unplanned Maintenance and Repair,UMR00,R&M External Contractors,0100,1534.41,AWM Electrical Contractors Ltd,100051,15/03/2013,10181308
Housing Revenue Account ,Unplanned Maintenance and Repair,UMR00,R&M External Contractors,0100,1938.85,AWM Electrical Contractors Ltd,100051,15/03/2013,10181486
Housing Revenue Account ,Unplanned Maintenance and Repair,UMR00,R&M External Contractors,0100,1129.04,AWM Electrical Contractors Ltd,100051,15/03/2013,10181687
Housing Revenue Account ,Unplanned Maintenance and Repair,UMR00,R&M External Contractors,0100,3328.84,AWM Electrical Contractors Ltd,100051,15/03/2013,10181688
Capital Program ,Disabled Adaptations,HCR01,Capital Contract Payments,5000,502.07,AWM Electrical Contractors Ltd,100051,15/03/2013,10181688
Housing Revenue Account ,Unplanned Maintenance and Repair,UMR00,R&M External Contractors,0100,1212.42,AWM Electrical Contractors Ltd,100051,22/03/2013,10181959
Housing Revenue Account ,Unplanned Maintenance and Repair,UMR00,R&M External Contractors,0100,933.63,AWM Electrical Contractors Ltd,100051,27/03/2013,10182210
Housing Revenue Account ,Unplanned Maintenance and Repair,UMR00,R&M External Contractors,0100,1523.82,Andy Woods Landscapes,100078,07/03/2013,10180976
Housing Revenue Account ,Unplanned Maintenance and Repair,UMR00,R&M External Contractors,0100,1057.65,Andy Woods Landscapes,100078,22/03/2013,10181961
Capital Program ,Kitchen Modifications,HIK10,Capital Contract Payments,5000,13787.16,A C E Carpentry & Joinery Contractors Ltd,100085,07/03/2013,10180772
Housing Revenue Account ,Unplanned Maintenance and Repair,UMR00,R&M External Contractors,0100,1271.12,A C E Carpentry & Joinery Contractors Ltd,100085,07/03/2013,10181062
Capital Program ,Kitchen Modifications,HIK10,Capital Contract Payments,5000,1332.94,A C E Carpentry & Joinery Contractors Ltd,100085,07/03/2013,10181062
Capital Program ,Kitchen Modifications,HIK10,Capital Contract Payments,5000,16085.02,A C E Carpentry & Joinery Contractors Ltd,100085,15/03/2013,10181186
Housing Revenue Account ,Unplanned Maintenance and Repair,UMR00,R&M External Contractors,0100,43.00,A C E Carpentry & Joinery Contractors Ltd,100085,15/03/2013,10181487
Capital Program ,Kitchen Modifications,HIK10,Capital Contract Payments,5000,1471.29,A C E Carpentry & Joinery Contractors Ltd,100085,15/03/2013,10181487
Resources & Corporate Governance,Corporate Property R&M,CPA01,R&M External Contractors,0100,8945.91,DC Leisure Rugby,100140,27/03/2013,10181445
Economy Development & Culture,The Benn Hall,BHL00,New Equipment,0300,1500.00,DC Leisure Rugby,100140,27/03/2013,10181812
Capital Program ,Woodland Creation Project,WCP00,Capital Contract Payments,5000,5370.00,Burrow Hill Ltd,100167,22/03/2013,10181270
Capital Program ,Cemetery Infrastructure Work,BUR05,Capital Contract Payments,5000,2621.20,Burrow Hill Ltd,100167,22/03/2013,10181271
Capital Program ,Woodland Creation Project,WCP00,Capital Contract Payments,5000,712.00,Burrow Hill Ltd,100167,27/03/2013,10181987
Housing Revenue Account ,Unplanned Maintenance and Repair,UMR00,R&M External Contractors,0100,862.20,Bowen Builders,100241,07/03/2013,10181066
Housing Revenue Account ,Unplanned Maintenance and Repair,UMR00,R&M External Contractors,0100,1259.73,Bowen Builders,100241,07/03/2013,10181209
Housing Revenue Account ,Unplanned Maintenance and Repair,UMR00,R&M External Contractors,0100,951.98,Bowen Builders,100241,07/03/2013,10181210
Housing Revenue Account ,Unplanned Maintenance and Repair,UMR00,R&M External Contractors,0100,869.84,Bowen Builders,100241,15/03/2013,10181490
Capital Program ,Disabled Adaptations,HCR01,Capital Contract Payments,5000,35.22,Bowen Builders,100241,15/03/2013,10181490
Housing Revenue Account ,Unplanned Maintenance and Repair,UMR00,R&M External Contractors,0100,1535.26,Bowen Builders,100241,15/03/2013,10181491
Housing Revenue Account ,Unplanned Maintenance and Repair,UMR00,R&M External Contractors,0100,2140.26,Bowen Builders,100241,22/03/2013,10181837
Capital Program ,Disabled Adaptations,HCR01,Capital Contract Payments,5000,121.11,Bowen Builders,100241,22/03/2013,10181837
Housing Revenue Account ,Unplanned Maintenance and Repair,UMR00,R&M External Contractors,0100,999.62,Bowen Builders,100241,22/03/2013,10181838
Housing Revenue Account ,Unplanned Maintenance and Repair,UMR00,R&M External Contractors,0100,1726.76,Bowen Builders,100241,27/03/2013,10182200
Capital Program ,Disabled Adaptations,HCR01,Capital Contract Payments,5000,1175.00,Bowen Builders,100241,27/03/2013,10182200
Housing Revenue Account ,Unplanned Maintenance and Repair,UMR00,R&M External Contractors,0100,380.50,Barron McCann Ltd,100248,15/03/2013,10181680
Housing Revenue Account ,Estate Management,MAN22,Estates,0457,75.00,Barron McCann Ltd,100248,15/03/2013,10181680
Resources & Corporate Governance,Handy man,WHM00,External Contractor & Operator,0742,756.54,Cwikskip (Tailby Brack Ltd),100325,12/03/2013,10181592
Resources & Corporate Governance ,Corporate Assurance,BTR40,Training fees,0011,700.00,Cipfa Business Ltd,100341,07/03/2013,10179372
Resources & Corporate Governance ,IT Procurement,CMP00,IT Capital Expenditure,5025,1030.00,Stone Computers,100390,27/03/2013,10182240
Resources & Corporate Governance ,Benn Hall ICT,CMP24,IT Capital Expenditure,5025,1530.00,Stone Computers,100390,27/03/2013,10182366
Economy Development & Culture,Economic Development General,ECD00,Development Activities,0450,750.00,Coventry & Warwickshire Chamber Of Commerce,100412,27/03/2013,10182337
Sustainable Environment ,Clinical Waste,REF04,External Contractor & Operator,0742,513.03,OCS Group UK Ltd t/a Cannon,100436,15/03/2013,10181570
Resources & Corporate Governance ,Domestic Waste Collection,WWC00,Vehicle Repair and Maintenance,0200,842.98,Dennis Eagle Ltd,100559,15/03/2013,10181266
Resources & Corporate Governance ,Trade Waste Collection,WWC01,Vehicle Repair and Maintenance,0200,65.42,Dennis Eagle Ltd,100559,15/03/2013,10181266
Resources & Corporate Governance ,Domestic Waste Collection,WWC00,Vehicle Repair and Maintenance,0200,598.28,Dennis Eagle Ltd,100559,22/03/2013,10181504
Capital Program ,Parish and Rural Capital Spending,CGR03,Capital Grants,5014,9663.48,Dunchurch Parish Council,100564,07/03/2013,10181124
Capital Program ,Parish and Rural Capital Spending,CGR03,Capital Grants,5014,2243.55,Dunchurch Parish Council,100564,15/03/2013,10181748
Economy Development & Culture,Building Control Services,BCS00,Subscriptions,0421,802.15,District Surveyors Association Limited,100582,22/03/2013,10181841
Economy Development & Culture,Building Regulation Fee Earning Account,BCS99,Subscriptions,0421,1063.32,District Surveyors Association Limited,100582,22/03/2013,10181841
Housing Revenue Account ,Unplanned Maintenance and Repair,UMR00,R&M External Contractors,0100,7590.98,JADA Building & Maintenance Services Ltd,100583,07/03/2013,10181065
Capital Program ,Disabled Adaptations,HCR01,Capital Contract Payments,5000,461.82,JADA Building & Maintenance Services Ltd,100583,07/03/2013,10181065
Capital Program ,Bathroom Modifications,HIS01,Capital Contract Payments,5000,712.87,JADA Building & Maintenance Services Ltd,100583,07/03/2013,10181065
Capital Program ,Bathroom Modifications,HIS01,Capital Contract Payments,5000,2495.00,JADA Building & Maintenance Services Ltd,100583,15/03/2013,10181162
Housing Revenue Account ,Unplanned Maintenance and Repair,UMR00,R&M External Contractors,0100,7109.32,JADA Building & Maintenance Services Ltd,100583,15/03/2013,10181501
Housing Revenue Account ,Stacey Court AP,AGP12,New Equipment,0300,27.50,JADA Building & Maintenance Services Ltd,100583,15/03/2013,10181501
Capital Program ,Disabled Adaptations,HCR01,Capital Contract Payments,5000,2094.53,JADA Building & Maintenance Services Ltd,100583,15/03/2013,10181501
Housing Revenue Account ,Unplanned Maintenance and Repair,UMR00,R&M External Contractors,0100,6235.51,JADA Building & Maintenance Services Ltd,100583,22/03/2013,10181960
Capital Program ,Disabled Adaptations,HCR01,Capital Contract Payments,5000,5830.00,JADA Building & Maintenance Services Ltd,100583,22/03/2013,10181960
Housing Revenue Account ,Unplanned Maintenance and Repair,UMR00,R&M External Contractors,0100,760.34,Dulux Decorator Centres,100597,15/03/2013,10181460
Housing Revenue Account ,Unplanned Maintenance and Repair,UMR00,R&M External Contractors,0100,1762.26,Lee Davies Decorating,100600,15/03/2013,10181587
Capital Program ,Open Spaces Refurbishment,LEI08,Capital Contract Payments,5000,590.95,Earth Anchors Ltd,100615,22/03/2013,10181741
Housing Revenue Account ,Albert Square AP,AGP20,Gas,0131,2194.33,ESPO,100641,07/03/2013,10180455
Housing Revenue Account ,Lesley Souter House AP,AGP16,Gas,0131,1750.13,ESPO,100641,27/03/2013,10180456
Housing Revenue Account ,Tanser Court AP,AGP17,Gas,0131,1925.72,ESPO,100641,07/03/2013,10180457
Resources & Corporate Governance,Corporate Property Central Utilities,CPA02,Gas,0131,3615.29,ESPO,100641,22/03/2013,10180475
Resources & Corporate Governance,Corporate Property Central Utilities,CPA02,Gas,0131,564.68,ESPO,100641,22/03/2013,10180871
Housing Revenue Account ,Albert Square AP,AGP20,Gas,0131,2054.96,ESPO,100641,27/03/2013,10181652
Housing Revenue Account ,Lesley Souter House AP,AGP16,Gas,0131,1538.92,ESPO,100641,22/03/2013,10181653
Housing Revenue Account ,Tanser Court AP,AGP17,Gas,0131,1726.89,ESPO,100641,22/03/2013,10181654
Resources & Corporate Governance,Corporate Property Central Utilities,CPA02,Gas,0131,3344.43,ESPO,100641,22/03/2013,10181655
Resources & Corporate Governance ,WSU Depot,WDP00,Gas,0131,862.16,ESPO,100641,27/03/2013,10181656
Housing Revenue Account ,Stretton Court AP,AGP13,Gas,0131,1275.48,ESPO,100641,27/03/2013,10181658
Resources & Corporate Governance,Corporate Property Central Utilities,CPA02,Gas,0131,1950.57,ESPO,100641,22/03/2013,10181660
Resources & Corporate Governance,Corporate Property Central Utilities,CPA02,Gas,0131,510.42,ESPO,100641,27/03/2013,10181965
Resources & Corporate Governance ,Domestic Waste Collection,WWC00,Agency Staff,0003,631.13,First Personnel Group Plc,100807,07/03/2013,10181006
Resources & Corporate Governance ,General Administration,WAD00,Professional Subscriptions,0017,662.00,Freight Transport Association,100830,27/03/2013,10182262
,Balance Sheet,BS,Car Leasing Scheme,9244,2514.53,Lex Autolease Ltd,100844,22/03/2013,10181862
,Balance Sheet,BS,Car Leasing Scheme,9244,-1368.01,Lex Autolease Ltd,100844,22/03/2013,10181902
Resources & Corporate Governance ,Maintenance of Customer Services Systems,CIS21,Software Maintenance,0374,3948.44,NTT DATA Figtree Systems Europe Ltd,100852,22/03/2013,10181761
Resources & Corporate Governance ,Customer and Information Strategy,CIS10,Software Maintenance,0374,2205.00,Fast Corporate Services Ltd,100853,15/03/2013,10181774
Resources & Corporate Governance ,Town Hall,OFF00,Materials,0303,867.00,Greenham,100890,07/03/2013,10180798
Resources & Corporate Governance ,Town Hall,OFF00,Materials,0303,751.10,Greenham,100890,27/03/2013,10182358
Sustainable Environment ,Caldecott Park/Town Centre Area,PKS00,Maintenance of Equipment,0301,497.69,GB Sport & Leisure UK Ltd,100920,15/03/2013,10180944
Resources & Corporate Governance ,Human Resources Centralised Services,RES31,Recruitment Expenses,0012,990.00,TMP (UK) LTD,100972,15/03/2013,10181420
Resources & Corporate Governance ,Human Resources Centralised Services,RES31,Recruitment Expenses,0012,754.80,TMP (UK) LTD,100972,27/03/2013,10182254
Resources & Corporate Governance,Corporate Property R&M,CPA01,R&M External Contractors,0100,532.50,ThyssenKrupp Elevator UK,100985,22/03/2013,10181778
Capital Program ,Bathroom Modifications,HIS01,Capital Contract Payments,5000,8955.00,B Hartwell Plumbers Ltd,100989,07/03/2013,10180882
Capital Program ,Bathroom Modifications,HIS01,Capital Contract Payments,5000,7685.00,B Hartwell Plumbers Ltd,100989,15/03/2013,10181603
Capital Program ,Bathroom Modifications,HIS01,Capital Contract Payments,5000,7904.00,B Hartwell Plumbers Ltd,100989,22/03/2013,10181962
Resources & Corporate Governance ,Domestic Waste Collection,WWC00,Vehicle Repair and Maintenance,0200,850.00,H.L. Smith (Transmissions) Ltd,101096,22/03/2013,10181711
Sustainable Environment,Regulatory Services,REG00,Subscriptions,0421,480.00,C.I.E.H,101121,27/03/2013,10182377
Sustainable Inclusive Communities,Housing Benefit Administration,HBA00,Subscriptions,0421,495.00,Institute Of Revenues Rating & Valuation,101124,22/03/2013,10181957
Resources & Corporate Governance ,Domestic Waste Collection,WWC00,Materials,0303,434.00,Imperial Polythene Products Limited,101157,22/03/2013,10181274
Capital Program ,Open Spaces Refurbishment,LEI08,Capital Contract Payments,5000,28979.60,Kompan Ltd,101199,15/03/2013,10180133
Resources & Corporate Governance,Handy man,WHM00,External Contractor & Operator,0742,491.40,Clews Recycling Limited,101213,22/03/2013,10180593
Resources & Corporate Governance,Handy man,WHM00,External Contractor & Operator,0742,7484.00,K A Hicks,101216,27/03/2013,10181948
Capital Program ,Parish and Rural Capital Spending,CGR03,Capital Grants,5014,3952.18,Long Lawford Parish Council,101228,15/03/2013,10181441
,User Balance Sheet Cost Centre,BSU,Section Agreements,9865,9800.00,Long Lawford Parish Council,101228,22/03/2013,10181821
Housing Revenue Account ,Unplanned Maintenance and Repair,UMR00,R&M External Contractors,0100,3735.00,MBG Decorators (Rugby Ltd),101288,15/03/2013,10181203
Housing Revenue Account ,Unplanned Maintenance and Repair,UMR00,R&M External Contractors,0100,3950.00,MBG Decorators (Rugby Ltd),101288,15/03/2013,10181685
Resources & Corporate Governance,Corporate Property R&M,CPA01,R&M External Contractors,0100,420.00,MBG Decorators (Rugby Ltd),101288,22/03/2013,10181686
Housing Revenue Account ,Unplanned Maintenance and Repair,UMR00,R&M External Contractors,0100,3536.50,MBG Decorators (Rugby Ltd),101288,27/03/2013,10182211
Resources & Corporate Governance,Handy man,WHM00,Materials,0303,884.52,Melbros Ltd,101291,27/03/2013,10180648
Resources & Corporate Governance,Handy man,WHM00,Materials,0303,730.86,Melbros Ltd,101291,15/03/2013,10181335
Resources & Corporate Governance,Handy man,WHM00,Materials,0303,418.00,Melbros Ltd,101291,22/03/2013,10181343
Resources & Corporate Governance,Handy man,WHM00,Materials,0303,580.00,Melbros Ltd,101291,15/03/2013,10181344
Resources & Corporate Governance,Handy man,WHM00,Materials,0303,418.00,Melbros Ltd,101291,15/03/2013,10181345
Resources & Corporate Governance,Handy man,WHM00,Materials,0303,464.60,Melbros Ltd,101291,27/03/2013,10181361
Resources & Corporate Governance,Handy man,WHM00,Materials,0303,435.00,Melbros Ltd,101291,27/03/2013,10182059
Resources & Corporate Governance,Corporate Property R&M,CPA01,R&M External Contractors,0100,841.71,M W D Services Ltd,101293,15/03/2013,10181126
Resources & Corporate Governance,Corporate Property R&M,CPA01,R&M External Contractors,0100,578.25,M W D Services Ltd,101293,15/03/2013,10181127
Resources & Corporate Governance ,Human Resources Centralised Services,RES31,Training fees,0011,700.00,Msm Environmental Services,101317,22/03/2013,10181845
Resources & Corporate Governance ,Garage Internal,WVR01,Materials,0303,783.20,Noden Truck Centre Ltd,101368,21/03/2013,10181995
Resources & Corporate Governance ,Domestic Waste Collection,WWC00,Vehicle Repair and Maintenance,0200,4103.05,Noden Truck Centre Ltd,101368,27/03/2013,10182437
Capital Program ,Asset Management System,AMS00,IT Capital Expenditure,5025,600.00,Ncc Services Limited,101374,22/03/2013,10181822
Economy Development & Culture,Visitor Centre,VSC00,Events Tickets - Zero Rated,1405,941.45,National Express Ltd,101392,07/03/2013,10181058
Capital Program ,Disabled Facilities Grant,REN01,Capital Grants,5014,510.75,Heart of England Housing Association,101400,27/03/2013,10182179
Capital Program ,Disabled Facilities Grant,REN01,Capital Grants,5014,808.65,Heart of England Housing Association,101400,27/03/2013,10182181
Capital Program ,Disabled Facilities Grant,REN01,Capital Grants,5014,541.89,Heart of England Housing Association,101400,27/03/2013,10182183
Capital Program ,Disabled Facilities Grant,REN01,Capital Grants,5014,1394.64,Heart of England Housing Association,101400,27/03/2013,10182188
Resources & Corporate Governance,Corporate Property R&M,CPA01,R&M External Contractors,0100,456.48,Omega Red Group Ltd,101409,27/03/2013,10182326
Resources & Corporate Governance,Corporate Property R&M,CPA01,R&M External Contractors,0100,682.40,Omega Red Group Ltd,101409,27/03/2013,10182327
Resources & Corporate Governance,Central Business Support Services,CSS15,External Printing,0352,500.00,Polycopy,101428,07/03/2013,10181049
Resources & Corporate Governance,Central Business Support Services,CSS15,Stationery Supplies,0350,567.00,Polycopy,101428,22/03/2013,10181848
Resources & Corporate Governance ,Street Cleansing,WSC00,Vehicle Running Costs,0201,-215.00,Post Office Ltd,101429,04/03/2013,10181054
Resources & Corporate Governance ,Domestic Waste Collection,WWC00,Vehicle Running Costs,0201,-615.00,Post Office Ltd,101429,04/03/2013,10181054
Resources & Corporate Governance,Handy man,WHM00,Vehicle Running Costs,0201,645.00,Post Office Ltd,101429,15/03/2013,10181305
Resources & Corporate Governance ,Street Cleansing,WSC00,Vehicle Running Costs,0201,165.00,Post Office Ltd,101429,15/03/2013,10181305
Resources & Corporate Governance ,Domestic Waste Collection,WWC00,Vehicle Running Costs,0201,888.00,Post Office Ltd,101429,15/03/2013,10181305
Economy Development & Culture,Sports and Recreation,LSD03,Vehicle Running Costs,0201,165.00,Post Office Ltd,101429,22/03/2013,10181834
Sustainable Environment,Regulatory Services,REG00,Vehicle Running Costs,0201,215.00,Post Office Ltd,101429,22/03/2013,10181834
Resources & Corporate Governance ,Garage Internal,WVR01,Vehicle Running Costs,0201,215.00,Post Office Ltd,101429,22/03/2013,10181834
Resources & Corporate Governance ,Domestic Waste Collection,WWC00,Vehicle Running Costs,0201,238.00,Post Office Ltd,101429,22/03/2013,10181834
Resources & Corporate Governance ,Trade Waste Collection,WWC01,Vehicle Running Costs,0201,650.00,Post Office Ltd,101429,22/03/2013,10181834
Sustainable Inclusive Communities,Sewage Disposal Plant,SDP00,R&M External Contractors,0100,520.28,PJT Pumping Services,101438,15/03/2013,10181452
Resources & Corporate Governance,Central Business Support Services,CSS15,Photocopying,0354,2819.60,Xerox (UK) Ltd,101502,07/03/2013,10181149
Resources & Corporate Governance ,Highways,WHG00,External Contractor & Operator,0742,519.82,Lafarge Aggregates Limited,101503,22/03/2013,10181925
Capital Program ,Electric to Gas Conversions,HIM04,Capital Contract Payments,5000,8289.00,Reeds Plumbing & Heating Contractors Ltd,101504,15/03/2013,10181161
Capital Program ,Disabled Facilities Grant,REN01,Capital Grants,5014,4490.00,Reeds Plumbing & Heating Contractors Ltd,101504,15/03/2013,10181200
Capital Program ,Electric to Gas Conversions,HIM04,Capital Contract Payments,5000,2763.00,Reeds Plumbing & Heating Contractors Ltd,101504,15/03/2013,10181605
Capital Program ,Electric to Gas Conversions,HIM04,Capital Contract Payments,5000,24407.00,Reeds Plumbing & Heating Contractors Ltd,101504,15/03/2013,10181690
Capital Program ,Electric to Gas Conversions,HIM04,Capital Contract Payments,5000,670.16,Reeds Plumbing & Heating Contractors Ltd,101504,27/03/2013,10182216
Economy Development & Culture,Building Control Services,BCS00,Postage & Distribution,0370,1.40,Royal Mail,101554,22/03/2013,10181394
Economy Development & Culture,Building Regulation Fee Earning Account,BCS99,Postage & Distribution,0370,1.86,Royal Mail,101554,22/03/2013,10181394
Economy Development & Culture,Car Parks General,CPK01,Postage & Distribution,0370,29.90,Royal Mail,101554,22/03/2013,10181394
Resources & Corporate Governance,Central Business Support Services,CSS15,Postage & Distribution,0370,452.94,Royal Mail,101554,22/03/2013,10181394
Resources & Corporate Governance ,Council Tax and NNDR Collection,CTX01,Postage & Distribution,0370,112.32,Royal Mail,101554,22/03/2013,10181394
Economy Development & Culture,Decrim. of Car Parking on street parking,DPE02,Postage & Distribution,0370,119.61,Royal Mail,101554,22/03/2013,10181394
Resources & Corporate Governance ,Electoral Registration,ERG00,Postage & Distribution,0370,21.85,Royal Mail,101554,22/03/2013,10181394
Sustainable Inclusive Communities,Housing Benefit Administration,HBA00,Postage & Distribution,0370,240.29,Royal Mail,101554,22/03/2013,10181394
Housing Revenue Account ,Supervision and Management General,MAN00,Postage & Distribution,0370,77.71,Royal Mail,101554,22/03/2013,10181394
Economy Development & Culture,Planning General/Income,PLN00,Postage & Distribution,0370,269.95,Royal Mail,101554,22/03/2013,10181394
Resources & Corporate Governance ,General Administration,WAD00,Postage & Distribution,0370,44.70,Royal Mail,101554,22/03/2013,10181394
Economy Development & Culture,Sports and Recreation,LSD03,Development Activities,0450,1599.17,Rugby School Enterprises Limited,101579,15/03/2013,10181303
Housing Revenue Account ,Unplanned Maintenance and Repair,UMR00,R&M External Contractors,0100,2729.72,Rugby Plastering Services,101602,22/03/2013,10181958
Housing Revenue Account ,Lesley Souter House AP,AGP16,Water Services,0143,1514.31,Severn Trent Water Ltd,101610,07/03/2013,10180726
Resources & Corporate Governance,Corporate Property Central Utilities,CPA02,Water Services,0143,3224.69,Severn Trent Water Ltd,101610,22/03/2013,10180895
Housing Revenue Account ,Dickinson Court AP,AGP03,Water Services,0143,556.67,Severn Trent Water Ltd,101610,07/03/2013,10181106
Housing Revenue Account ,Tanser Court AP,AGP17,Water Services,0143,930.86,Severn Trent Water Ltd,101610,07/03/2013,10181111
Housing Revenue Account ,Stretton Court AP,AGP13,Water Services,0143,676.48,Severn Trent Water Ltd,101610,07/03/2013,10181114
Housing Revenue Account ,Albert Square AP,AGP20,Water Services,0143,1550.16,Severn Trent Water Ltd,101610,07/03/2013,10181115
Resources & Corporate Governance,Corporate Property Central Utilities,CPA02,Water Services,0143,748.02,Severn Trent Water Ltd,101610,22/03/2013,10181151
Resources & Corporate Governance ,Borough Elections,ELC00,Stationery Supplies,0350,1126.08,Shaw & Sons Ltd,101612,22/03/2013,10181736
Capital Program ,Disabled Facilities Grant,REN01,Capital Grants,5014,4545.00,Stannah Stairlifts Ltd,101623,07/03/2013,10180595
Resources & Corporate Governance,Corporate Property R&M,CPA01,R&M External Contractors,0100,2018.34,Secom Plc,101671,27/03/2013,10182227
Resources & Corporate Governance ,Customer and Information Strategy,CIS10,Subscriptions,0421,890.00,SOCITM Limited,101682,07/03/2013,10181102
Resources & Corporate Governance ,Domestic Waste Collection,WWC00,Vehicle Running Costs,0201,933.00,HI-Q Motorway,101736,15/03/2013,10181221
Resources & Corporate Governance ,Domestic Waste Collection,WWC00,Vehicle Running Costs,0201,197.00,HI-Q Motorway,101736,15/03/2013,10181222
Resources & Corporate Governance ,Trade Waste Collection,WWC01,Vehicle Running Costs,0201,394.00,HI-Q Motorway,101736,15/03/2013,10181222
Resources & Corporate Governance ,Domestic Waste Collection,WWC00,Vehicle Running Costs,0201,1433.80,HI-Q Motorway,101736,15/03/2013,10181279
Resources & Corporate Governance ,Trade Waste Collection,WWC01,Vehicle Running Costs,0201,207.00,HI-Q Motorway,101736,15/03/2013,10181279
Capital Program ,Woodland Creation Project,WCP00,Capital Contract Payments,5000,4220.00,Tudor Environmental,101743,22/03/2013,10181709
Capital Program ,Open Spaces Refurbishment,LEI08,Capital Contract Payments,5000,1735.20,Wicksteed Leisure Limited,101845,27/03/2013,10182428
Sustainable Environment ,Grass Cutting,PKS13,External Contractor & Operator,0742,639.00,Willoughby Parish Council,101848,27/03/2013,10181578
Capital Program ,Parish and Rural Capital Spending,CGR03,Capital Grants,5014,1496.25,Withybrook Parish Council,101849,15/03/2013,10181630
Capital Program ,Parish and Rural Capital Spending,CGR03,Capital Grants,5014,4634.40,Wolvey Parish Council,101853,15/03/2013,10181594
Resources & Corporate Governance ,General Administration,WAD00,Training fees,0011,1134.00,Warwickshire College,101882,07/03/2013,10180508
Resources & Corporate Governance ,Human Resources Centralised Services,RES31,Training fees,0011,2000.00,Warwickshire College,101882,22/03/2013,10181868
Economy Development & Culture,Art Gallery and Museum,AGM00,Contract Cleaning,0170,956.83,Warwickshire County Council,101893,07/03/2013,10181098
Housing Revenue Account ,Unplanned Maintenance and Repair,UMR00,R&M External Contractors,0100,478.03,Warwickshire County Council,101893,15/03/2013,10181576
Economy Development & Culture,Planning General/Income,PLN00,Consultancy Costs,0740,2513.93,Warwickshire County Council,101893,15/03/2013,10181581
Economy Development & Culture,Art Gallery and Museum,AGM00,Contract Cleaning,0170,2870.49,Warwickshire County Council,101893,22/03/2013,10181782
Resources & Corporate Governance ,Safety and Resilience,EPL00,Payments to Other Local Authorities,0710,657.00,Warwickshire County Council,101893,22/03/2013,10181896
Resources & Corporate Governance,Handy man,WHM00,External Contractor & Operator,0742,3260.00,Darren Wilson Roofing Ltd,101911,27/03/2013,10181867
Capital Program ,Electric to Gas Conversions,HIM04,Capital Contract Payments,5000,12125.52,Adroit Services Ltd,101939,07/03/2013,10180966
Capital Program ,Electric to Gas Conversions,HIM04,Capital Contract Payments,5000,10049.52,Adroit Services Ltd,101939,07/03/2013,10180967
Housing Revenue Account ,Unplanned Maintenance and Repair,UMR00,R&M External Contractors,0100,1172.51,Adroit Services Ltd,101939,07/03/2013,10180974
Capital Program ,Disabled Adaptations,HCR01,Capital Contract Payments,5000,291.63,Adroit Services Ltd,101939,07/03/2013,10180974
Housing Revenue Account ,Unplanned Maintenance and Repair,UMR00,R&M External Contractors,0100,1095.66,Adroit Services Ltd,101939,15/03/2013,10181499
Housing Revenue Account ,Unplanned Maintenance and Repair,UMR00,R&M External Contractors,0100,737.79,Adroit Services Ltd,101939,15/03/2013,10181500
Capital Program ,Electric to Gas Conversions,HIM04,Capital Contract Payments,5000,478.95,Adroit Services Ltd,101939,15/03/2013,10181500
Capital Program ,Electric to Gas Conversions,HIM04,Capital Contract Payments,5000,12125.52,Adroit Services Ltd,101939,15/03/2013,10181512
Capital Program ,Electric to Gas Conversions,HIM04,Capital Contract Payments,5000,9613.14,Adroit Services Ltd,101939,15/03/2013,10181513
Housing Revenue Account ,Unplanned Maintenance and Repair,UMR00,R&M External Contractors,0100,1033.69,Adroit Services Ltd,101939,22/03/2013,10181840
Capital Program ,Electric to Gas Conversions,HIM04,Capital Contract Payments,5000,11689.14,Adroit Services Ltd,101939,22/03/2013,10181897
Capital Program ,Electric to Gas Conversions,HIM04,Capital Contract Payments,5000,9613.14,Adroit Services Ltd,101939,22/03/2013,10181898
Housing Revenue Account ,Unplanned Maintenance and Repair,UMR00,R&M External Contractors,0100,1595.46,Adroit Services Ltd,101939,27/03/2013,10182203
Housing Revenue Account ,Unplanned Maintenance and Repair,UMR00,R&M External Contractors,0100,123.31,Adroit Services Ltd,101939,27/03/2013,10182205
Capital Program ,Electric to Gas Conversions,HIM04,Capital Contract Payments,5000,1351.79,Adroit Services Ltd,101939,27/03/2013,10182205
Housing Revenue Account ,Unplanned Maintenance and Repair,UMR00,R&M External Contractors,0100,845.51,Adroit Services Ltd,101939,27/03/2013,10182206
Capital Program ,Electric to Gas Conversions,HIM04,Capital Contract Payments,5000,45.00,Adroit Services Ltd,101939,27/03/2013,10182206
Resources & Corporate Governance ,"Communications, Consultation and Information Team",BTR20,Publicity & Marketing,0377,1293.16,Johnston Publishing Ltd,107468,22/03/2013,10181314
Resources & Corporate Governance ,"Communications, Consultation and Information Team",BTR20,Publicity & Marketing,0377,742.00,Johnston Publishing Ltd,107468,15/03/2013,10181315
Resources & Corporate Governance ,"Communications, Consultation and Information Team",BTR20,Publicity & Marketing,0377,461.60,Johnston Publishing Ltd,107468,27/03/2013,10181870
Resources & Corporate Governance,Corporate Property R&M,CPA01,R&M External Contractors,0100,889.00,Ser-Tec Systems Ltd,108074,27/03/2013,10182241
Resources & Corporate Governance ,Street Cleansing,WSC00,Vehicle Repair and Maintenance,0200,464.64,Scarab Sweepers Ltd,108252,27/03/2013,10181860
Resources & Corporate Governance ,Central Telephone Service,TEL00,Telephone Expenses,0371,973.92,British Telecommunications PLC,108425,22/03/2013,10181934
Capital Program ,Private Sector Renovation Loans,REN00,Capital Contract Payments,5000,1895.00,K W Damp Proofing,109936,22/03/2013,10181810
Resources & Corporate Governance ,Garage Internal,WVR01,Materials,0303,35070.00,Watson Petroleum,110361,07/03/2013,10180948
Resources & Corporate Governance,Corporate Property R&M,CPA01,R&M External Contractors,0100,610.03,Croxford Electrical,110451,15/03/2013,10181232
Resources & Corporate Governance,Central Business Support Services,CSS15,Photocopying,0354,4335.32,Ricoh UK Limited,111532,07/03/2013,10180881
Resources & Corporate Governance,Central Business Support Services,CSS15,Photocopying,0354,3641.12,Ricoh UK Limited,111532,07/03/2013,10180894
Resources & Corporate Governance,Central Business Support Services,CSS15,Photocopying,0354,1787.62,Ricoh UK Limited,111532,07/03/2013,10180963
Economy Development & Culture,Art Gallery and Museum,AGM00,Photocopying,0354,420.95,Ricoh UK Limited,111532,27/03/2013,10182189
Resources & Corporate Governance ,Grounds Maintenance,WGM00,External Contractor & Operator,0742,3443.87,Mark Smithers,112612,27/03/2013,10182312
Resources & Corporate Governance ,Grounds Maintenance,WGM00,External Contractor & Operator,0742,6322.91,Mark Smithers,112612,27/03/2013,10182314
Resources & Corporate Governance ,Maintenance of Customer Services Systems,CIS21,Software Maintenance,0374,12669.05,Civica UK Ltd,112724,15/03/2013,10181633
Capital Program ,Purchase of Vehicles,VHC00,Capital Contract Payments,5000,29555.00,Geo Browns Implements Ltd,112870,15/03/2013,10181294
Resources & Corporate Governance ,Domestic Waste Collection,WWC00,Agency Staff,0003,508.37,Extra Personnel Limited,112996,15/03/2013,10181249
Resources & Corporate Governance ,Domestic Waste Collection,WWC00,Agency Staff,0003,508.37,Extra Personnel Limited,112996,27/03/2013,10182284
Sustainable Inclusive Communities,Housing Benefit Administration,HBA00,Agency Staff,0003,999.00,Badenoch & Clark,113435,07/03/2013,10181038
Sustainable Inclusive Communities,Housing Benefit Administration,HBA00,Agency Staff,0003,1005.75,Badenoch & Clark,113435,15/03/2013,10181304
Sustainable Inclusive Communities,Housing Benefit Administration,HBA00,Agency Staff,0003,999.00,Badenoch & Clark,113435,15/03/2013,10181779
Sustainable Inclusive Communities,Housing Benefit Administration,HBA00,Agency Staff,0003,999.00,Badenoch & Clark,113435,27/03/2013,10182116
Economy Development & Culture,Ken Marriott Leisure Centre,KML00,External Contractor & Operator,0742,25181.06,DC Leisure Management Ltd (Otium),114443,07/03/2013,10181130
Housing Revenue Account ,Unplanned Maintenance and Repair,UMR00,R&M External Contractors,0100,1341.40,Temple Lifts Ltd,114738,15/03/2013,10181117
Housing Revenue Account ,Unplanned Maintenance and Repair,UMR00,R&M External Contractors,0100,3241.00,Temple Lifts Ltd,114738,15/03/2013,10181493
Housing Revenue Account ,Unplanned Maintenance and Repair,UMR00,R&M External Contractors,0100,1837.00,Temple Lifts Ltd,114738,15/03/2013,10181495
Housing Revenue Account ,Unplanned Maintenance and Repair,UMR00,R&M External Contractors,0100,9.00,Temple Lifts Ltd,114738,15/03/2013,10181496
Housing Revenue Account ,Multi-Storey Flats,MSF00,New Equipment,0300,1400.00,Temple Lifts Ltd,114738,15/03/2013,10181496
Housing Revenue Account ,Unplanned Maintenance and Repair,UMR00,R&M External Contractors,0100,6203.60,Temple Lifts Ltd,114738,15/03/2013,10181498
Capital Program ,Fire Risk Assessment,HCE18,Capital Contract Payments,5000,162.00,Temple Lifts Ltd,114738,15/03/2013,10181498
Sustainable Environment ,Hackney Carriages,HKC00,External Contractor & Operator,0742,675.00,Ashman & Clough Ltd,115494,22/03/2013,10181928
Resources & Corporate Governance,Corporate Property R&M,CPA01,R&M External Contractors,0100,2329.00,Hi-Lite Electrical Ltd,118814,22/03/2013,10181849
Sustainable Environment ,Crime and Disorder Activities,CAD00,Other Miscellaneous Expenses,0444,1475.00,Hi-Lite Electrical Ltd,118814,27/03/2013,10182242
Resources & Corporate Governance,Corporate Property Central Utilities,CPA02,Electricity,0130,9044.63,Southern Electric,118976,22/03/2013,10181669
Resources & Corporate Governance ,Maintenance of Customer Services Systems,CIS21,Software Maintenance,0374,16529.00,Capita Software Services,119406,15/03/2013,10181691
Sustainable Inclusive Communities,CL Grants,CGS00,Grants To Voluntary Organisations,0720,2000.00,Overslade Community Association,119698,15/03/2013,10181439
Housing Revenue Account ,Unplanned Maintenance and Repair,UMR00,R&M External Contractors,0100,329.16,Pro-Tec Security Systems,119999,07/03/2013,10181208
Capital Program ,Disabled Adaptations,HCR01,Capital Contract Payments,5000,266.68,Pro-Tec Security Systems,119999,07/03/2013,10181208
Resources & Corporate Governance ,Toilet Cleaning,WBC01,Agency Staff,0003,459.51,G-Staff Ltd,120173,07/03/2013,10180932
Resources & Corporate Governance,Handy man,WHM00,Agency Staff,0003,243.98,G-Staff Ltd,120173,07/03/2013,10180932
Resources & Corporate Governance ,Street Cleansing,WSC00,Agency Staff,0003,294.12,G-Staff Ltd,120173,07/03/2013,10180932
Resources & Corporate Governance ,Domestic Waste Collection,WWC00,Agency Staff,0003,1878.50,G-Staff Ltd,120173,07/03/2013,10180932
Resources & Corporate Governance ,Trade Waste Collection,WWC01,Agency Staff,0003,585.56,G-Staff Ltd,120173,07/03/2013,10180932
Resources & Corporate Governance,Handy man,WHM00,Agency Staff,0003,410.34,G-Staff Ltd,120173,15/03/2013,10181067
Resources & Corporate Governance ,Street Cleansing,WSC00,Agency Staff,0003,294.10,G-Staff Ltd,120173,15/03/2013,10181067
Resources & Corporate Governance ,Domestic Waste Collection,WWC00,Agency Staff,0003,1417.13,G-Staff Ltd,120173,15/03/2013,10181067
Resources & Corporate Governance ,Trade Waste Collection,WWC01,Agency Staff,0003,585.59,G-Staff Ltd,120173,15/03/2013,10181067
Resources & Corporate Governance,Handy man,WHM00,Agency Staff,0003,410.33,G-Staff Ltd,120173,22/03/2013,10181905
Resources & Corporate Governance ,Street Cleansing,WSC00,Agency Staff,0003,368.89,G-Staff Ltd,120173,22/03/2013,10181905
Resources & Corporate Governance ,Domestic Waste Collection,WWC00,Agency Staff,0003,1372.63,G-Staff Ltd,120173,22/03/2013,10181905
Resources & Corporate Governance ,Trade Waste Collection,WWC01,Agency Staff,0003,585.59,G-Staff Ltd,120173,22/03/2013,10181905
Capital Program ,Housing Management System,HCE08,Capital Contract Payments,5000,1900.00,Northgate Information Solutions UK Ltd,121606,27/03/2013,10182368
Resources & Corporate Governance ,"Communications, Consultation and Information Team",BTR20,Publicity & Marketing,0377,525.00,Janus Kreative,121748,27/03/2013,10182369
Housing Revenue Account ,Maintenance of Open Spaces,MOS00,External Contractor & Operator,0742,440.63,Brinklow Quarry,122921,22/03/2013,10181263
Resources & Corporate Governance ,Garage Internal,WVR01,Materials,0303,662.16,Fueltek Ltd,123134,22/03/2013,10181717
Resources & Corporate Governance ,Central Telephone Service,TEL00,Telephone Expenses,0371,1029.29,Cable & Wireless,123224,15/03/2013,10181259
Sustainable Environment ,Head of Environmental Services,ENV00,Training fees,0011,560.00,ABC Food Safety Ltd,123820,27/03/2013,10181454
Economy Development & Culture,AGM Exhibitions/Outreach,AGM02,Other Miscellaneous Expenses,0444,952.00,Emblem Print Products Ltd,124385,07/03/2013,10181176
Resources & Corporate Governance ,"Communications, Consultation and Information Team",BTR20,Publicity & Marketing,0377,444.58,A Blair,124770,15/03/2013,10181751
Sustainable Environment ,Head of Environmental Services,ENV00,Training fees,0011,755.00,The Open University,125783,27/03/2013,10182344
Capital Program ,Purchase of Vehicles,VHC00,Miscellaneous Capital Expenditure,5020,9015.00,Guest Trucks,126437,07/03/2013,10181181
Capital Program ,Purchase of Vehicles,VHC00,Miscellaneous Capital Expenditure,5020,10015.00,Guest Trucks,126437,07/03/2013,10181182
Capital Program ,Purchase of Vehicles,VHC00,Miscellaneous Capital Expenditure,5020,9715.00,Guest Trucks,126437,07/03/2013,10181183
Capital Program ,Purchase of Vehicles,VHC00,Miscellaneous Capital Expenditure,5020,9715.00,Guest Trucks,126437,07/03/2013,10181184
Capital Program ,Purchase of Vehicles,VHC00,Miscellaneous Capital Expenditure,5020,10015.00,Guest Trucks,126437,07/03/2013,10181185
Capital Program ,Purchase of Vehicles,VHC00,Miscellaneous Capital Expenditure,5020,10015.00,Guest Trucks,126437,22/03/2013,10181980
Capital Program ,Purchase of Vehicles,VHC00,Miscellaneous Capital Expenditure,5020,9715.00,Guest Trucks,126437,22/03/2013,10181983
Capital Program ,Purchase of Vehicles,VHC00,Miscellaneous Capital Expenditure,5020,9715.00,Guest Trucks,126437,22/03/2013,10181984
Capital Program ,Purchase of Vehicles,VHC00,Miscellaneous Capital Expenditure,5020,9465.00,Guest Trucks,126437,22/03/2013,10181985
Capital Program ,Purchase of Vehicles,VHC00,Miscellaneous Capital Expenditure,5020,13965.00,Guest Trucks,126437,27/03/2013,10182382
Capital Program ,Purchase of Vehicles,VHC00,Miscellaneous Capital Expenditure,5020,13965.00,Guest Trucks,126437,28/03/2013,10182383
Capital Program ,Purchase of Vehicles,VHC00,Miscellaneous Capital Expenditure,5020,13965.00,Guest Trucks,126437,27/03/2013,10182384
Resources & Corporate Governance ,Domestic Waste Collection,WWC00,Contract Hire,0220,650.00,Phoenix Vehicle Hire Ltd,126659,22/03/2013,10181284
Resources & Corporate Governance ,Domestic Waste Collection,WWC00,Contract Hire,0220,650.00,Phoenix Vehicle Hire Ltd,126659,22/03/2013,10181285
Housing Revenue Account ,Property Maintenance,MAN23,External Contractor & Operator,0742,700.00,George and Company (Surveyors) Ltd,126668,07/03/2013,10181089
Resources & Corporate Governance,Handy man,WHM00,External Contractor & Operator,0742,792.50,M P Hudson & Son,129334,15/03/2013,10181591
Resources & Corporate Governance,Handy man,WHM00,External Contractor & Operator,0742,697.20,M P Hudson & Son,129334,22/03/2013,10181904
Resources & Corporate Governance,Handy man,WHM00,External Contractor & Operator,0742,724.00,M P Hudson & Son,129334,27/03/2013,10182324
Capital Program ,Moving in Grants,MIG00,Capital Contract Payments,5000,5000.00,Rugby First Limited - Town Centre,130214,27/03/2013,10182247
,User Balance Sheet Cost Centre,BSU,Section Agreements,9865,600.00,C J L Gates and Engineering,130825,07/03/2013,10180930
Resources & Corporate Governance ,"Communications, Consultation and Information Team",BTR20,Consultation,0378,4500.00,Rugby FM,131249,27/03/2013,10182376
Sustainable Environment ,Caldecott Park/Town Centre Area,PKS00,R&M External Contractors,0100,488.00,I D Welding & Fabrications,131407,22/03/2013,10180931
Economy Development & Culture,Car Parks General,CPK01,Cash Collection,0744,1098.19,Jade Security Services Ltd,131711,15/03/2013,10181295
Economy Development & Culture,Decrim. of Car Parking on street parking,DPE02,Cash Collection,0744,591.84,Jade Security Services Ltd,131711,22/03/2013,10181296
Economy Development & Culture,Car Parks General,CPK01,Training fees,0011,325.50,Alpha Parking Ltd,131720,15/03/2013,10181001
Economy Development & Culture,Decrim. of Car Parking on street parking,DPE02,Training fees,0011,1302.00,Alpha Parking Ltd,131720,15/03/2013,10181001
Sustainable Inclusive Communities,Housing Options Team,HOT00,Rents,0140,700.00,N Mallidi,132033,15/03/2013,10180363
Sustainable Inclusive Communities,Housing Options Team,HOT00,Rents,0140,700.00,N Mallidi,132033,15/03/2013,10180879
Sustainable Inclusive Communities,Housing Options Team,HOT00,Rents,0140,600.00,N Mallidi,132033,27/03/2013,10181770
Sustainable Inclusive Communities,Housing Options Team,HOT00,Rents,0140,600.00,N Mallidi,132033,27/03/2013,10182223
Housing Revenue Account ,Unplanned Maintenance and Repair,UMR00,R&M External Contractors,0100,432.80,Wilson Electrics,132051,07/03/2013,10181129
Housing Revenue Account ,Unplanned Maintenance and Repair,UMR00,R&M External Contractors,0100,2486.16,Wilson Electrics,132051,15/03/2013,10181585
Housing Revenue Account ,Unplanned Maintenance and Repair,UMR00,R&M External Contractors,0100,730.36,Wilson Electrics,132051,27/03/2013,10182207
Economy Development & Culture,Town Centre CCTV and Management,TVM00,Other Agencies,0734,20115.98,Rugby First Ltd - BID,133176,15/03/2013,10181665
Resources & Corporate Governance,Handy man,WHM00,External Contractor & Operator,0742,2074.00,Homecare Decorating,133884,07/03/2013,10181003
Resources & Corporate Governance,Handy man,WHM00,External Contractor & Operator,0742,456.00,Homecare Decorating,133884,27/03/2013,10182288
Resources & Corporate Governance,Handy man,WHM00,External Contractor & Operator,0742,424.00,Homecare Decorating,133884,27/03/2013,10182289
Resources & Corporate Governance,Handy man,WHM00,External Contractor & Operator,0742,1420.00,Homecare Decorating,133884,27/03/2013,10182385
Housing Revenue Account ,Unplanned Maintenance and Repair,UMR00,R&M External Contractors,0100,1300.65,Sunfish Services Ltd,133886,27/03/2013,10182202
Housing Revenue Account ,Unplanned Maintenance and Repair,UMR00,R&M External Contractors,0100,2676.15,Delec Ltd,133887,07/03/2013,10181125
Housing Revenue Account ,Unplanned Maintenance and Repair,UMR00,R&M External Contractors,0100,2650.58,Delec Ltd,133887,15/03/2013,10181586
Housing Revenue Account ,Unplanned Maintenance and Repair,UMR00,R&M External Contractors,0100,1620.35,Delec Ltd,133887,15/03/2013,10181682
Housing Revenue Account ,Unplanned Maintenance and Repair,UMR00,R&M External Contractors,0100,1475.21,Delec Ltd,133887,22/03/2013,10181963
Housing Revenue Account ,Unplanned Maintenance and Repair,UMR00,R&M External Contractors,0100,1310.23,Delec Ltd,133887,27/03/2013,10182213
Economy Development & Culture,Car Parks General,CPK01,Other Agencies,0734,560.00,24181 TEC,133967,15/03/2013,10181781
Economy Development & Culture,Decrim. of Car Parking on street parking,DPE02,Other Agencies,0734,2240.00,24181 TEC,133967,15/03/2013,10181781
Housing Revenue Account ,Avon Court AP,AGP02,Electricity,0130,33.80,Southern Electric,135653,15/03/2013,10181670
Housing Revenue Account ,Dickinson Court AP,AGP03,Electricity,0130,-47.15,Southern Electric,135653,15/03/2013,10181670
Housing Revenue Account ,Robotham Close AP,AGP11,Electricity,0130,719.72,Southern Electric,135653,15/03/2013,10181670
Housing Revenue Account ,Stretton Court AP,AGP13,Electricity,0130,133.77,Southern Electric,135653,15/03/2013,10181670
Housing Revenue Account ,Eliot Court AP,AGP25,Electricity,0130,-91.57,Southern Electric,135653,15/03/2013,10181670
Housing Revenue Account ,Brookside Pailton AP,AGP40,Electricity,0130,136.82,Southern Electric,135653,15/03/2013,10181670
Housing Revenue Account ,Great Balance Brinklow AP,AGP48,Electricity,0130,81.32,Southern Electric,135653,15/03/2013,10181670
Housing Revenue Account ,Lever Road I AP,AGP57,Electricity,0130,-43.24,Southern Electric,135653,15/03/2013,10181670
Housing Revenue Account ,Meadow Way/Primrose Court AP,AGP58,Electricity,0130,56.59,Southern Electric,135653,15/03/2013,10181670
Housing Revenue Account ,Patterdale AP,AGP61,Electricity,0130,114.91,Southern Electric,135653,15/03/2013,10181670
Housing Revenue Account ,Parkfield Road/Lea Crescent AP,AGP71,Electricity,0130,141.89,Southern Electric,135653,15/03/2013,10181670
Housing Revenue Account ,Supervision and Management General,MAN00,Electricity,0130,-708.82,Southern Electric,135653,15/03/2013,10181670
Sustainable Environment,Regulatory Services,REG00,Personal Protective Clothing,0340,455.00,The Workman,137100,27/03/2013,10182380
Resources & Corporate Governance ,Domestic Waste Collection,WWC00,Vehicle Repair and Maintenance,0200,1055.26,Heil Europe Ltd,137390,22/03/2013,10180940
Sustainable Environment ,Crime and Disorder Activities,CAD00,Other Miscellaneous Expenses,0444,1055.00,Solon Security Ltd,137493,15/03/2013,10181697
Sustainable Environment ,Burglary,CAD03,Development Activities,0450,240.00,Solon Security Ltd,137493,15/03/2013,10181697
Resources & Corporate Governance ,Street Cleansing,WSC00,Materials,0303,436.00,Danline International Ltd,137588,27/03/2013,10182270
Resources & Corporate Governance ,Town Hall,OFF00,Contract Cleaning,0170,934.87,Regent Office Care Ltd T/A Regent Cleaning,138934,27/03/2013,10181009
Resources & Corporate Governance ,WSU Depot,WDP00,Contract Cleaning,0170,47.83,Regent Office Care Ltd T/A Regent Cleaning,138934,27/03/2013,10181009
Resources & Corporate Governance ,Grounds Maintenance,WGM00,Contract Cleaning,0170,32.21,Regent Office Care Ltd T/A Regent Cleaning,138934,27/03/2013,10181009
Housing Revenue Account ,Unplanned Maintenance and Repair,UMR00,R&M External Contractors,0100,1324.83,Regent Office Care Ltd T/A Regent Cleaning,138934,07/03/2013,10181059
Housing Revenue Account ,Sheltered Housing,AGP00,Contract Cleaning,0170,3124.96,Regent Office Care Ltd T/A Regent Cleaning,138934,15/03/2013,10181139
Sustainable Inclusive Communities,Housing Options Team,HOT00,Contract Cleaning,0170,27.73,Regent Office Care Ltd T/A Regent Cleaning,138934,15/03/2013,10181139
Housing Revenue Account ,Estate Management,MAN22,Contract Cleaning,0170,680.91,Regent Office Care Ltd T/A Regent Cleaning,138934,15/03/2013,10181139
Housing Revenue Account ,Multi-Storey Flats,MSF00,Contract Cleaning,0170,369.08,Regent Office Care Ltd T/A Regent Cleaning,138934,15/03/2013,10181139
Housing Revenue Account ,Unplanned Maintenance and Repair,UMR00,R&M External Contractors,0100,476.57,Regent Office Care Ltd T/A Regent Cleaning,138934,07/03/2013,10181205
Housing Revenue Account ,Unplanned Maintenance and Repair,UMR00,R&M External Contractors,0100,858.86,Regent Office Care Ltd T/A Regent Cleaning,138934,07/03/2013,10181206
Housing Revenue Account ,Sheltered Housing,AGP00,Contract Cleaning,0170,14297.47,Regent Office Care Ltd T/A Regent Cleaning,138934,15/03/2013,10181442
Sustainable Inclusive Communities,Housing Options Team,HOT00,Contract Cleaning,0170,134.76,Regent Office Care Ltd T/A Regent Cleaning,138934,15/03/2013,10181442
Housing Revenue Account ,Estate Management,MAN22,Contract Cleaning,0170,3078.90,Regent Office Care Ltd T/A Regent Cleaning,138934,15/03/2013,10181442
Housing Revenue Account ,Multi-Storey Flats,MSF00,Contract Cleaning,0170,1731.91,Regent Office Care Ltd T/A Regent Cleaning,138934,15/03/2013,10181442
Resources & Corporate Governance ,Town Hall,OFF00,Contract Cleaning,0170,4280.55,Regent Office Care Ltd T/A Regent Cleaning,138934,15/03/2013,10181444
Resources & Corporate Governance ,WSU Depot,WDP00,Contract Cleaning,0170,219.00,Regent Office Care Ltd T/A Regent Cleaning,138934,15/03/2013,10181444
Resources & Corporate Governance ,Grounds Maintenance,WGM00,Contract Cleaning,0170,147.50,Regent Office Care Ltd T/A Regent Cleaning,138934,15/03/2013,10181444
Housing Revenue Account ,Asbestos Surveys,UMR05,R&M External Contractors,0100,2470.00,Rider Levett Bucknall UK Ltd,139918,07/03/2013,10180977
Housing Revenue Account ,Asbestos Surveys,UMR05,R&M External Contractors,0100,9230.00,Rider Levett Bucknall UK Ltd,139918,15/03/2013,10181684
Capital Program ,Electric to Gas Conversions,HIM04,Capital Contract Payments,5000,130.00,Rider Levett Bucknall UK Ltd,139918,15/03/2013,10181684
Capital Program ,Bathroom Modifications,HIS01,Capital Contract Payments,5000,390.00,Rider Levett Bucknall UK Ltd,139918,15/03/2013,10181684
Economy Development & Culture,Planning General/Income,PLN00,Consultancy Costs,0740,800.00,P Rhodes,140076,22/03/2013,10181805
Economy Development & Culture,Planning General/Income,PLN00,Consultancy Costs,0740,1200.00,P Rhodes,140076,22/03/2013,10181931
Sustainable Environment ,Allotments,ALL00,R&M External Contractors,0100,975.00,D J Whitlock Plant Hire,140156,22/03/2013,10181668
Sustainable Environment ,Caldecott Park/Town Centre Area,PKS00,External Contractor & Operator,0742,7230.00,D J Whitlock Plant Hire,140156,22/03/2013,10181733
Sustainable Environment ,Cemeteries General,CEM00,External Contractor & Operator,0742,2650.00,D J Whitlock Plant Hire,140156,22/03/2013,10181735
Sustainable Environment ,Caldecott Park/Town Centre Area,PKS00,External Contractor & Operator,0742,685.00,D J Whitlock Plant Hire,140156,22/03/2013,10181947
Resources & Corporate Governance ,Domestic Waste Collection,WWC00,Vehicle Repair and Maintenance,0200,409.47,Midlands Truck & Van Ltd,140322,22/03/2013,10181622
Resources & Corporate Governance ,Trade Waste Collection,WWC01,Vehicle Repair and Maintenance,0200,39.61,Midlands Truck & Van Ltd,140322,22/03/2013,10181622
Resources & Corporate Governance ,Maintenance of Customer Services Systems,CIS21,Software Maintenance,0374,4276.44,Midland Software Ltd,140463,07/03/2013,10181004
Resources & Corporate Governance ,Customer and Information Strategy,CIS10,Telephone Expenses,0371,426.01,Zen Internet Ltd,141612,15/03/2013,10181577
Resources & Corporate Governance ,Council Tax and NNDR Collection,CTX01,Telephone Expenses,0371,21.27,Zen Internet Ltd,141612,15/03/2013,10181577
Sustainable Inclusive Communities,Housing Benefit Administration,HBA00,Telephone Expenses,0371,21.27,Zen Internet Ltd,141612,15/03/2013,10181577
Resources & Corporate Governance ,Customer and Information Strategy,CIS10,Telephone Expenses,0371,729.35,Zen Internet Ltd,141612,22/03/2013,10181932
Resources & Corporate Governance ,Council Tax and NNDR Collection,CTX01,Telephone Expenses,0371,21.27,Zen Internet Ltd,141612,22/03/2013,10181932
Resources & Corporate Governance,Corporate Property R&M,CPA01,R&M External Contractors,0100,757.93,Healthmatic Limited,143256,15/03/2013,10181323
Capital Program ,Cemetery Infrastructure Work,BUR05,Capital Contract Payments,5000,3650.00,All Gates and Rails,143665,15/03/2013,10181327
Economy Development & Culture,Positive Futures,LSD04,Development Activities,0450,708.37,Teamworks Karting Ltd,143909,22/03/2013,10181864
Sustainable Inclusive Communities,Local Council Tax Support,HBA10,Public Transport and Car Parking,0230,597.00,Hbinfo Ltd,144002,27/03/2013,10182340
Housing Revenue Account ,Supervision and Management General,MAN00,Subscriptions,0421,2000.00,Association of Retained Council Housing Ltd,145015,22/03/2013,10181811
Sustainable Inclusive Communities,Housing Options Team,HOT00,Agency Staff,0003,607.17,James Andrews Recruitment Solutions Ltd,145100,15/03/2013,10180840
Housing Revenue Account ,Property Maintenance,MAN23,Agency Staff,0003,627.68,James Andrews Recruitment Solutions Ltd,145100,15/03/2013,10181237
Housing Revenue Account ,Property Maintenance,MAN23,Agency Staff,0003,1073.00,James Andrews Recruitment Solutions Ltd,145100,15/03/2013,10181754
Housing Revenue Account ,Property Maintenance,MAN23,Agency Staff,0003,1247.00,James Andrews Recruitment Solutions Ltd,145100,15/03/2013,10181756
Sustainable Inclusive Communities,Housing Options Team,HOT00,Agency Staff,0003,475.89,James Andrews Recruitment Solutions Ltd,145100,27/03/2013,10182120
Housing Revenue Account ,Property Maintenance,MAN23,Agency Staff,0003,1196.65,James Andrews Recruitment Solutions Ltd,145100,27/03/2013,10182121
Sustainable Inclusive Communities,Housing Options Team,HOT00,Agency Staff,0003,603.07,James Andrews Recruitment Solutions Ltd,145100,27/03/2013,10182142
Resources & Corporate Governance ,Street Cleansing,WSC00,Agency Staff,0003,225.00,Blue Arrow Limited,145492,15/03/2013,10181225
Resources & Corporate Governance ,Domestic Waste Collection,WWC00,Agency Staff,0003,453.18,Blue Arrow Limited,145492,15/03/2013,10181225
Resources & Corporate Governance ,Street Cleansing,WSC00,Agency Staff,0003,320.95,Blue Arrow Limited,145492,27/03/2013,10181617
Resources & Corporate Governance ,Domestic Waste Collection,WWC00,Agency Staff,0003,654.56,Blue Arrow Limited,145492,27/03/2013,10181617
Resources & Corporate Governance ,Street Cleansing,WSC00,Agency Staff,0003,345.13,Blue Arrow Limited,145492,22/03/2013,10181918
Resources & Corporate Governance ,Domestic Waste Collection,WWC00,Agency Staff,0003,715.28,Blue Arrow Limited,145492,22/03/2013,10181918
Resources & Corporate Governance ,General Financial Services,GFS00,External Contractor & Operator,0742,18098.00,Grant Thornton UK LLP,145501,22/03/2013,10181890
Housing Revenue Account ,Supervision and Management General,MAN00,Publicity & Marketing,0377,979.44,Impress Print,145574,15/03/2013,10181775
Resources & Corporate Governance,Corporate Property R&M,CPA01,R&M External Contractors,0100,620.00,ESM Power Limited,145695,27/03/2013,10182251
Sustainable Environment ,Caldecott Park/Town Centre Area,PKS00,Maintenance of Equipment,0301,6747.30,Pro-Teq Surfacing (UK) Ltd,145825,27/03/2013,10181936
Resources & Corporate Governance ,Highways,WHG00,Materials,0303,459.30,Midland Rock Leicester Ltd,145830,27/03/2013,10182003
Resources & Corporate Governance,Corporate Property R&M,CPA01,R&M External Contractors,0100,1399.05,Stanair Industrial Services Ltd,146499,22/03/2013,10181953
Resources & Corporate Governance ,Grounds Maintenance,WGM00,Agency Staff,0003,434.80,Fresh Recruitment Solutions (FRS) Ltd,146784,22/03/2013,10181787
Resources & Corporate Governance ,Human Resources Centralised Services,RES31,Training fees,0011,1600.00,Mallard Consultancy Ltd,146807,15/03/2013,10181456
Sustainable Environment,Environmental Protection FPNs,REG20,Subscriptions,0421,2500.00,Mallard Consultancy Ltd,146807,15/03/2013,10181675
Resources & Corporate Governance,Corporate Property R&M,CPA01,R&M External Contractors,0100,4145.75,Environmental Essentials Ltd,146842,07/03/2013,10179366
Economy Development & Culture,Building Control Services,BCS00,Postage & Distribution,0370,5.15,TNT Post Midlands Ltd,146983,07/03/2013,10180779
Economy Development & Culture,Building Regulation Fee Earning Account,BCS99,Postage & Distribution,0370,6.83,TNT Post Midlands Ltd,146983,07/03/2013,10180779
Resources & Corporate Governance,Central Business Support Services,CSS15,Postage & Distribution,0370,73.24,TNT Post Midlands Ltd,146983,07/03/2013,10180779
Resources & Corporate Governance ,Council Tax and NNDR Collection,CTX01,Postage & Distribution,0370,796.37,TNT Post Midlands Ltd,146983,07/03/2013,10180779
Resources & Corporate Governance ,Electoral Registration,ERG00,Postage & Distribution,0370,18.44,TNT Post Midlands Ltd,146983,07/03/2013,10180779
Sustainable Inclusive Communities,Housing Benefit Administration,HBA00,Postage & Distribution,0370,744.98,TNT Post Midlands Ltd,146983,07/03/2013,10180779
Housing Revenue Account ,Supervision and Management General,MAN00,Postage & Distribution,0370,79.59,TNT Post Midlands Ltd,146983,07/03/2013,10180779
Economy Development & Culture,Visitor Centre,VSC00,Postage & Distribution,0370,1.68,TNT Post Midlands Ltd,146983,07/03/2013,10180779
Resources & Corporate Governance ,General Administration,WAD00,Postage & Distribution,0370,1.96,TNT Post Midlands Ltd,146983,07/03/2013,10180779
Economy Development & Culture,Art Gallery and Museum,AGM00,Postage & Distribution,0370,0.31,TNT Post Midlands Ltd,146983,22/03/2013,10181260
Economy Development & Culture,Building Control Services,BCS00,Postage & Distribution,0370,2.88,TNT Post Midlands Ltd,146983,22/03/2013,10181260
Economy Development & Culture,Building Regulation Fee Earning Account,BCS99,Postage & Distribution,0370,3.82,TNT Post Midlands Ltd,146983,22/03/2013,10181260
Resources & Corporate Governance,Central Business Support Services,CSS15,Postage & Distribution,0370,44.74,TNT Post Midlands Ltd,146983,22/03/2013,10181260
Resources & Corporate Governance ,Council Tax and NNDR Collection,CTX01,Postage & Distribution,0370,44.39,TNT Post Midlands Ltd,146983,22/03/2013,10181260
Resources & Corporate Governance ,Electoral Registration,ERG00,Postage & Distribution,0370,7.57,TNT Post Midlands Ltd,146983,22/03/2013,10181260
Sustainable Inclusive Communities,Housing Benefit Administration,HBA00,Postage & Distribution,0370,47.15,TNT Post Midlands Ltd,146983,22/03/2013,10181260
Housing Revenue Account ,Supervision and Management General,MAN00,Postage & Distribution,0370,1194.36,TNT Post Midlands Ltd,146983,22/03/2013,10181260
Economy Development & Culture,Visitor Centre,VSC00,Postage & Distribution,0370,3.00,TNT Post Midlands Ltd,146983,22/03/2013,10181260
Resources & Corporate Governance ,General Administration,WAD00,Postage & Distribution,0370,0.61,TNT Post Midlands Ltd,146983,22/03/2013,10181260
Economy Development & Culture,Building Control Services,BCS00,Postage & Distribution,0370,7.92,TNT Post Midlands Ltd,146983,22/03/2013,10181261
Economy Development & Culture,Building Regulation Fee Earning Account,BCS99,Postage & Distribution,0370,10.49,TNT Post Midlands Ltd,146983,22/03/2013,10181261
Resources & Corporate Governance,Central Business Support Services,CSS15,Postage & Distribution,0370,89.24,TNT Post Midlands Ltd,146983,22/03/2013,10181261
Resources & Corporate Governance ,Council Tax and NNDR Collection,CTX01,Postage & Distribution,0370,149.54,TNT Post Midlands Ltd,146983,22/03/2013,10181261
Resources & Corporate Governance ,Electoral Registration,ERG00,Postage & Distribution,0370,179.62,TNT Post Midlands Ltd,146983,22/03/2013,10181261
Sustainable Inclusive Communities,Housing Benefit Administration,HBA00,Postage & Distribution,0370,111.86,TNT Post Midlands Ltd,146983,22/03/2013,10181261
Housing Revenue Account ,Supervision and Management General,MAN00,Postage & Distribution,0370,41.77,TNT Post Midlands Ltd,146983,22/03/2013,10181261
Resources & Corporate Governance ,General Administration,WAD00,Postage & Distribution,0370,0.88,TNT Post Midlands Ltd,146983,22/03/2013,10181261
Resources & Corporate Governance,Corporate Property R&M,CPA01,R&M External Contractors,0100,1433.68,General Asphalte Company,147047,27/03/2013,10182250
Capital Program ,Corporate Property Enhancements,CPE00,Capital Contract Payments,5000,1669.74,General Asphalte Company,147047,27/03/2013,10182379
Housing Revenue Account ,Gas Heating Systems,UMR01,R&M External Contractors,0100,26915.26,Integral UK Ltd,147080,07/03/2013,10180965
Housing Revenue Account ,Unplanned Maintenance and Repair,UMR00,R&M External Contractors,0100,1376.44,Integral UK Ltd,147080,07/03/2013,10181063
Housing Revenue Account ,Gas Heating Systems,UMR01,R&M External Contractors,0100,440.00,Integral UK Ltd,147080,07/03/2013,10181063
Capital Program ,Pettiver Crescent,PCH00,Capital Contract Payments,5000,222.10,Integral UK Ltd,147080,07/03/2013,10181063
Capital Program ,Disabled Adaptations,HCR01,Capital Contract Payments,5000,2463.74,Intelligent Disabled Solutions Ltd,147081,07/03/2013,10181061
Capital Program ,Disabled Adaptations,HCR01,Capital Contract Payments,5000,3902.36,Intelligent Disabled Solutions Ltd,147081,15/03/2013,10181681
Capital Program ,Queen's Diamond Jubilee Leisure Centre Project,LEI03,Capital Contract Payments,5000,3500.00,B3 Architects,147190,22/03/2013,10181093
Economy Development & Culture,The Benn Hall,BHL00,Contract Cleaning,0170,41.00,SJ Cleaning (Midlands) Ltd,147273,22/03/2013,10181695
Sustainable Environment ,Cemeteries General,CEM00,Contract Cleaning,0170,33.00,SJ Cleaning (Midlands) Ltd,147273,22/03/2013,10181695
Resources & Corporate Governance ,Town Hall,OFF00,Contract Cleaning,0170,373.00,SJ Cleaning (Midlands) Ltd,147273,22/03/2013,10181695
Economy Development & Culture,Town Centre Public Conveniences,PCS00,Contract Cleaning,0170,21.00,SJ Cleaning (Midlands) Ltd,147273,22/03/2013,10181695
Sustainable Environment ,Caldecott Park/Town Centre Area,PKS00,Contract Cleaning,0170,41.00,SJ Cleaning (Midlands) Ltd,147273,22/03/2013,10181695
Resources & Corporate Governance ,WSU Depot,WDP00,Contract Cleaning,0170,41.00,SJ Cleaning (Midlands) Ltd,147273,22/03/2013,10181695
Resources & Corporate Governance,Handy man,WHM00,External Contractor & Operator,0742,458.33,Stewart Groom Flooring,147316,22/03/2013,10181714
Capital Program ,Bathroom Modifications,HIS01,Capital Contract Payments,5000,12990.00,TSG Building Services Plc,147369,15/03/2013,10181604
Capital Program ,Bathroom Modifications,HIS01,Capital Contract Payments,5000,7348.88,TSG Building Services Plc,147369,22/03/2013,10181806
Resources & Corporate Governance,Corporate Property R&M,CPA01,R&M External Contractors,0100,475.00,Safelincs Ltd,147394,07/03/2013,10180920
Capital Program ,Kitchen Modifications,HIK10,Capital Contract Payments,5000,3185.29,Rixonway Kitchens Ltd,147446,07/03/2013,10174508
Capital Program ,Disabled Facilities Grant,REN01,Capital Grants,5014,3000.00,Pollards Property Solution,147541,15/03/2013,10181620
Sustainable Environment ,Caldecott Park/Town Centre Area,PKS00,Maintenance of Equipment,0301,1698.50,Gavin Jones (Midlands) Ltd,147569,22/03/2013,10181923
Capital Program ,Great Central Walk Bridge,LEI14,Capital Contract Payments,5000,12654.06,Currall Lewis & Martin (Construction) Ltd,147769,22/03/2013,10181975
Capital Program ,Viaduct Cycleways,CYC02,Capital Contract Payments,5000,48332.78,Currall Lewis & Martin (Construction) Ltd,147769,22/03/2013,10181976
Capital Program ,Viaduct Cycleways,CYC02,Capital Contract Payments,5000,108474.88,Currall Lewis & Martin (Construction) Ltd,147769,27/03/2013,10181977
Capital Program ,Viaduct Cycleways,CYC02,Capital Contract Payments,5000,46837.38,Currall Lewis & Martin (Construction) Ltd,147769,22/03/2013,10181978
Capital Program ,Great Central Walk Bridge,LEI14,Capital Contract Payments,5000,49416.53,Currall Lewis & Martin (Construction) Ltd,147769,27/03/2013,10181979
Capital Program ,Great Central Walk Bridge,LEI14,Capital Contract Payments,5000,18757.32,Currall Lewis & Martin (Construction) Ltd,147769,22/03/2013,10181981
Capital Program ,Great Central Walk Bridge,LEI14,Capital Contract Payments,5000,29337.90,Currall Lewis & Martin (Construction) Ltd,147769,22/03/2013,10181982
Resources & Corporate Governance ,"Communications, Consultation and Information Team",BTR20,Publicity & Marketing,0377,525.00,Cole Creative Communications Ltd,147857,27/03/2013,10181873
Resources & Corporate Governance ,"Communications, Consultation and Information Team",BTR20,Postage & Distribution,0370,25.00,Cole Creative Communications Ltd,147857,18/03/2013,10181874
Resources & Corporate Governance ,"Communications, Consultation and Information Team",BTR20,Publicity & Marketing,0377,3395.25,Cole Creative Communications Ltd,147857,18/03/2013,10181874
Resources & Corporate Governance ,"Communications, Consultation and Information Team",BTR20,Publicity & Marketing,0377,3420.25,Cole Creative Communications Ltd,147857,27/03/2013,10182107
Resources & Corporate Governance ,WSU Depot,WDP00,Messing Facilities,0332,3900.00,Cole Creative Communications Ltd,147857,27/03/2013,10182372
Resources & Corporate Governance ,Street Cleansing,WSC00,Agency Staff,0003,294.12,3b2 Recruitment Ltd T/A Darren Bell Recruitment,147938,07/03/2013,10181021
Resources & Corporate Governance ,Domestic Waste Collection,WWC00,Agency Staff,0003,175.48,3b2 Recruitment Ltd T/A Darren Bell Recruitment,147938,07/03/2013,10181021
Resources & Corporate Governance ,Street Cleansing,WSC00,Agency Staff,0003,304.88,3b2 Recruitment Ltd T/A Darren Bell Recruitment,147938,15/03/2013,10181629
Resources & Corporate Governance ,Domestic Waste Collection,WWC00,Agency Staff,0003,142.89,3b2 Recruitment Ltd T/A Darren Bell Recruitment,147938,15/03/2013,10181629
Resources & Corporate Governance ,Street Cleansing,WSC00,Agency Staff,0003,586.93,3b2 Recruitment Ltd T/A Darren Bell Recruitment,147938,27/03/2013,10182263
Capital Program ,Queen's Diamond Jubilee Leisure Centre Project,LEI03,Capital Contract Payments,5000,896920.21,Shepherd Construction Ltd,148014,15/03/2013,10181475
Resources & Corporate Governance,Handy man,WHM00,External Contractor & Operator,0742,592.50,Dean Hudson,148035,15/03/2013,10181590
Resources & Corporate Governance,Handy man,WHM00,External Contractor & Operator,0742,645.00,Dean Hudson,148035,22/03/2013,10181903
Resources & Corporate Governance,Handy man,WHM00,External Contractor & Operator,0742,615.00,Dean Hudson,148035,27/03/2013,10182323
Economy Development & Culture,Ken Marriott Leisure Centre,KML00,Other,0763,10679.00,Leonie Cowen & Associates,148057,15/03/2013,10181632
Economy Development & Culture,Car Parks General,CPK01,Recruitment Expenses,0012,3.99,Team Prevent UK Ltd,148151,07/03/2013,10180739
Economy Development & Culture,Decrim. of Car Parking on street parking,DPE02,Recruitment Expenses,0012,15.96,Team Prevent UK Ltd,148151,07/03/2013,10180739
Housing Revenue Account ,Supervision and Management General,MAN00,Recruitment Expenses,0012,19.95,Team Prevent UK Ltd,148151,07/03/2013,10180739
Resources & Corporate Governance ,Caldecott Park Cafe,WGM02,Recruitment Expenses,0012,17.50,Team Prevent UK Ltd,148151,07/03/2013,10180739
Resources & Corporate Governance,Handy man,WHM00,Recruitment Expenses,0012,35.00,Team Prevent UK Ltd,148151,07/03/2013,10180739
Housing Revenue Account ,Property Maintenance,MAN23,Employee wellbeing/Other employee expenses,0021,85.00,Team Prevent UK Ltd,148151,07/03/2013,10180739
Economy Development & Culture,Planning Control,PLN01,Employee wellbeing/Other employee expenses,0021,59.00,Team Prevent UK Ltd,148151,07/03/2013,10180739
Resources & Corporate Governance ,Grounds Maintenance,WGM00,Employee wellbeing/Other employee expenses,0021,85.00,Team Prevent UK Ltd,148151,07/03/2013,10180739
Resources & Corporate Governance ,TREE WORKS,WGM01,Employee wellbeing/Other employee expenses,0021,85.00,Team Prevent UK Ltd,148151,07/03/2013,10180739
Resources & Corporate Governance ,Street Cleansing,WSC00,Employee wellbeing/Other employee expenses,0021,430.50,Team Prevent UK Ltd,148151,07/03/2013,10180739
Resources & Corporate Governance ,Domestic Waste Collection,WWC00,Employee wellbeing/Other employee expenses,0021,97.50,Team Prevent UK Ltd,148151,07/03/2013,10180739
Capital Program ,Great Central Walk Bridge,LEI14,Capital Contract Payments,5000,650.00,Stone Tech (Cleveland) Ltd,148176,07/03/2013,10180639
Capital Program ,Great Central Walk Bridge,LEI14,Capital Contract Payments,5000,650.00,Stone Tech (Cleveland) Ltd,148176,22/03/2013,10181715
,Balance Sheet,BS,Car Salary Sacrifice,9243,1658.50,Fleethire Ltd,148197,22/03/2013,10181851
Housing Revenue Account ,Control Centre CCTV,CCE01,New Equipment,0300,610.60,Probrand Limited,148276,22/03/2013,10181850
Housing Revenue Account ,Supervision and Management General,MAN00,Consultancy Costs,0740,18300.00,P H Jones Ltd,148295,27/03/2013,10182359
Resources & Corporate Governance,Handy man,WHM00,External Contractor & Operator,0742,1050.00,J P Building Services,148337,22/03/2013,10181745
Capital Program ,Pettiver Crescent,PCH00,Capital Contract Payments,5000,437.50,"Gotch, Saunders & Surridge LLP , t/a GSS Architecture",148432,27/03/2013,10182362
Capital Program ,Open Spaces Refurbishment,LEI08,Capital Contract Payments,5000,627.50,A & A Lamb Ltd,148461,22/03/2013,10181179
Capital Program ,Open Spaces Refurbishment,LEI08,Capital Contract Payments,5000,23412.05,J P Landscapes & Construction Ltd,148502,22/03/2013,10181749
Resources & Corporate Governance ,"Communications, Consultation and Information Team",BTR20,Consultation,0378,4500.00,PNG Marketing,148523,07/03/2013,10181050
Resources & Corporate Governance,Handy man,WHM00,Contract Hire,0220,920.00,Garforth Scaffolding Ltd,148530,15/03/2013,10180946
Sustainable Environment,Regulatory Services,REG00,Conference & Seminar Fees,0401,1200.00,Ricardo-AEA Ltd,148607,15/03/2013,10181555
Capital Program ,Open Spaces Refurbishment,LEI08,Capital Contract Payments,5000,4042.50,Kova Landscape Ltd,148635,27/03/2013,10182431
Resources & Corporate Governance,Handy man,WHM00,Materials,0303,481.00,Contour Showers Limited,148636,27/03/2013,10181078
Capital Program ,Cemetery Infrastructure Work,BUR05,Capital Contract Payments,5000,3626.66,Alpha Rail Ltd,148637,07/03/2013,10179870
Resources & Corporate Governance ,Garage Internal,WVR01,Agency Staff,0003,783.20,Proactive Personnel Ltd,148724,15/03/2013,10181219
Resources & Corporate Governance ,Garage Internal,WVR01,Agency Staff,0003,783.20,Proactive Personnel Ltd,148724,22/03/2013,10181804
Sustainable Environment ,Caldecott Park/Town Centre Area,PKS00,External Contractor & Operator,0742,885.00,Red Kite Network Limited,148744,22/03/2013,10181262
Economy Development & Culture,Economic Development General,ECD00,Consultancy Costs,0740,1500.00,Deloitte,148797,07/03/2013,10181100
Economy Development & Culture,Planning Control,PLN01,External Legal Costs,0741,4250.00,Rowena Meager,148816,15/03/2013,10180777
Sustainable Inclusive Communities,Housing Options Team,HOT00,Other Miscellaneous Expenses,0444,1755.00,REDACTED PERSONAL DATA,148835,12/03/2013,10181138
,Balance Sheet,BS,Car Loan Scheme,9261,3889.33,Mercland Ltd,148846,15/03/2013,10181607
Economy Development & Culture,Art Gallery and Museum,AGM00,Other Miscellaneous Expenses,0444,500.00,Robert Priseman,148852,15/03/2013,10181759
Economy Development & Culture,AGM Exhibitions/Outreach,AGM02,Other Miscellaneous Expenses,0444,61.80,Robert Priseman,148852,15/03/2013,10181759
Housing Revenue Account ,Eliot Court AP,AGP25,New Equipment,0300,785.00,Coventry Blinds,148870,27/03/2013,10182357
Economy Development & Culture,Positive Futures,LSD04,Development Activities,0450,580.00,Adband,148873,27/03/2013,10182131
Capital Program ,Parish and Rural Capital Spending,CGR03,Capital Grants,5014,10400.00,Shilton & Barnacle Parish Council,148879,27/03/2013,10182191
Economy Development & Culture,Car Parks General,HKC01,Pre Employment Checks,0444,528.00,DBS,,18/03/2013,27310
Resources & Corporate Governance,Financial Services,GFS00,E-Payments charges,0445,677.90,Capita Software Services,,27/03/2013,27403
,Balance Sheet,BS,Contributions To NNDR Pool,9476,909528.00,Department for Communities & Local Govt,,05/03/2013,27192
,Balance Sheet,BS,Contributions To NNDR Pool,9476,909528.00,Department for Communities & Local Govt,,19/03/2013,27322
